[Event "*** Titled Tuesday 3|2 Blitz"]
[Site "Chess.com"]
[Date "2017.06.06"]
[Round "6"]
[White "dtn70"]
[Black "yian123"]
[Result "0-1"]
[WhiteElo "2205"]
[BlackElo "2407"]
[TimeControl "180+2"]
[EndTime "15:09:24 PDT"]
[Termination "yian123 won by resignation"]

1. e4 {[%clk 0:03:02]} 1... e5 {[%clk 0:03:00.4]} 2. Nf3 {[%clk 0:03:01.8]} 2...
Nc6 {[%clk 0:03:01.5]} 3. Bb5 {[%clk 0:03:01.9]} 3... a6 {[%clk 0:03:02.6]} 4.
Bxc6 {[%clk 0:03:03.1]} 4... dxc6 {[%clk 0:03:03.8]} 5. O-O {[%clk 0:03:03.4]}
5... Qf6 {[%clk 0:03:05]} 6. d3 {[%clk 0:03:01.5]} 6... Bd6 {[%clk 0:02:55.6]}
7. Nbd2 {[%clk 0:02:59.2]} 7... c5 {[%clk 0:02:53.4]} 8. a4 {[%clk 0:02:55.4]}
8... Ne7 {[%clk 0:02:52.5]} 9. Nc4 {[%clk 0:02:54.1]} 9... Nc6 {[%clk
0:02:53.4]} 10. h3 {[%clk 0:02:44.4]} 10... h6 {[%clk 0:02:45.1]} 11. Be3 {[%clk
0:02:41.3]} 11... Be6 {[%clk 0:02:45.2]} 12. b3 {[%clk 0:02:27.3]} 12... O-O
{[%clk 0:02:34.7]} 13. c3 {[%clk 0:02:15.8]} 13... Qg6 {[%clk 0:02:32.9]} 14.
Kh1 {[%clk 0:02:14.1]} 14... Rad8 {[%clk 0:02:26.4]} 15. Qe2 {[%clk 0:02:10.8]}
15... b6 {[%clk 0:02:20.6]} 16. Rad1 {[%clk 0:02:04.8]} 16... b5 {[%clk
0:02:16.5]} 17. axb5 {[%clk 0:02:04.3]} 17... axb5 {[%clk 0:02:18.4]} 18. Nxd6
{[%clk 0:02:04.4]} 18... cxd6 {[%clk 0:02:20.3]} 19. d4 {[%clk 0:01:45.9]} 19...
cxd4 {[%clk 0:02:08.1]} 20. cxd4 {[%clk 0:01:46.7]} 20... Qxe4 {[%clk
0:02:07.7]} 21. Qxb5 {[%clk 0:01:10.6]} 21... Rb8 {[%clk 0:01:36.6]} 22. Qe2
{[%clk 0:00:57.3]} 22... Bxb3 {[%clk 0:01:15.4]} 23. Rd2 {[%clk 0:00:42.5]}
23... Na5 {[%clk 0:00:57.8]} 24. Re1 {[%clk 0:00:23.1]} 24... Nc4 {[%clk
0:00:52.7]} 25. Rd3 {[%clk 0:00:20.7]} 25... Na5 {[%clk 0:00:25.9]} 26. Nd2
{[%clk 0:00:18.6]} 26... Qg6 {[%clk 0:00:18.1]} 27. Nxb3 {[%clk 0:00:19.2]}
27... Nxb3 {[%clk 0:00:19.3]} 28. dxe5 {[%clk 0:00:19.1]} 28... dxe5 {[%clk
0:00:21.2]} 29. Rb1 {[%clk 0:00:15.7]} 29... Nd4 {[%clk 0:00:20.8]} 30. Qd1
{[%clk 0:00:14.6]} 30... Rxb1 {[%clk 0:00:19.6]} 31. Qxb1 {[%clk 0:00:15.2]}
31... Ne6 {[%clk 0:00:21.2]} 32. Qd1 {[%clk 0:00:15.6]} 32... Qf6 {[%clk
0:00:20.6]} 33. Rd6 {[%clk 0:00:16.4]} 33... Rd8 {[%clk 0:00:21.4]} 34. Rxd8+
{[%clk 0:00:16.6]} 34... Qxd8 {[%clk 0:00:22.9]} 35. Qxd8+ {[%clk 0:00:16.7]}
35... Nxd8 {[%clk 0:00:24.8]} 36. Kh2 {[%clk 0:00:16.5]} 36... Ne6 {[%clk
0:00:25.9]} 37. Kg1 {[%clk 0:00:17.3]} 37... f5 {[%clk 0:00:27.3]} 38. Kf1
{[%clk 0:00:18.3]} 38... Kf7 {[%clk 0:00:28.5]} 39. Ke2 {[%clk 0:00:18.9]} 39...
f4 {[%clk 0:00:29.7]} 40. Bb6 {[%clk 0:00:19.3]} 40... e4 {[%clk 0:00:31.2]} 41.
Ba7 {[%clk 0:00:19.1]} 41... Kf6 {[%clk 0:00:32]} 42. Bb8 {[%clk 0:00:19.5]}
42... Kf5 {[%clk 0:00:32.7]} 43. Ba7 {[%clk 0:00:18.8]} 43... g5 {[%clk
0:00:34.1]} 44. Bb8 {[%clk 0:00:19.5]} 44... h5 {[%clk 0:00:32.2]} 45. Ba7
{[%clk 0:00:20.4]} 45... Ke5 {[%clk 0:00:29.2]} 46. Bb8+ {[%clk 0:00:19.4]}
46... Kd5 {[%clk 0:00:30.3]} 47. Ba7 {[%clk 0:00:20.3]} 47... Nd4+ {[%clk
0:00:30]} 48. Kf1 {[%clk 0:00:19]} 48... f3 {[%clk 0:00:30]} 49. gxf3 {[%clk
0:00:16.5]} 49... exf3 {[%clk 0:00:29.5]} 50. Bb8 {[%clk 0:00:14.5]} 50... Ke4
{[%clk 0:00:29.6]} 51. Bc7 {[%clk 0:00:14.4]} 51... Ne6 {[%clk 0:00:30.5]} 52.
Bb6 {[%clk 0:00:14.7]} 52... Nf4 {[%clk 0:00:31.7]} 53. h4 {[%clk 0:00:12.1]}
53... g4 {[%clk 0:00:22.9]} 54. Bc7 {[%clk 0:00:10.9]} 54... Ng6 {[%clk
0:00:17.6]} 55. Bd8 {[%clk 0:00:11.1]} 55... Kf4 {[%clk 0:00:17]} 56. Kg1 {[%clk
0:00:11.3]} 56... Kf5 {[%clk 0:00:15.8]} 57. Kf1 {[%clk 0:00:10.4]} 57... Nf4
{[%clk 0:00:16.4]} 58. Kg1 {[%clk 0:00:09.9]} 58... Ne6 {[%clk 0:00:17.5]} 59.
Be7 {[%clk 0:00:10.2]} 59... Nc7 {[%clk 0:00:17.4]} 60. Bd6 {[%clk 0:00:10.2]}
60... Nd5 {[%clk 0:00:18]} 61. Bg3 {[%clk 0:00:10.3]} 61... Nc3 {[%clk
0:00:18.8]} 62. Kf1 {[%clk 0:00:10.5]} 62... Ne2 {[%clk 0:00:19.7]} 63. Bc7
{[%clk 0:00:11]} 63... Ke4 {[%clk 0:00:19.6]} 64. Bd8 {[%clk 0:00:11.5]} 64...
g3 {[%clk 0:00:19.5]} 65. fxg3 {[%clk 0:00:11.7]} 65... Nxg3+ {[%clk 0:00:21.4]}
66. Kf2 {[%clk 0:00:12.1]} 66... Ne2 {[%clk 0:00:22.6]} 67. Bb6 {[%clk 0:00:11]}
67... Kf4 {[%clk 0:00:23.3]} 68. Bd8 {[%clk 0:00:09.4]} 68... Kg4 {[%clk
0:00:24.1]} 69. Be7 {[%clk 0:00:09.8]} 69... Nf4 {[%clk 0:00:24.2]} 70. Bd8
{[%clk 0:00:09.8]} 70... Nd3+ {[%clk 0:00:25]} 71. Kf1 {[%clk 0:00:09.7]} 71...
Kg3 {[%clk 0:00:23.7]} 72. Be7 {[%clk 0:00:10.2]} 72... Nf4 {[%clk 0:00:19.3]}
73. Bd6 {[%clk 0:00:10]} 73... Kg4 {[%clk 0:00:19.8]} 74. Bxf4 {[%clk
0:00:09.9]} 74... Kxf4 {[%clk 0:00:20.4]} 75. Kf2 {[%clk 0:00:08.5]} 75... Kg4
{[%clk 0:00:21.1]} 76. Kg1 {[%clk 0:00:06.2]} 76... Kxh4 {[%clk 0:00:22]} 77.
Kf2 {[%clk 0:00:07.5]} 77... Kg4 {[%clk 0:00:23.2]} 78. Ke3 {[%clk 0:00:08.1]}
78... Kg3 {[%clk 0:00:24.3]} 0-1

[Event "*** Titled Tuesday 3|2 Blitz"]
[Site "Chess.com"]
[Date "2017.06.06"]
[Round "6"]
[White "Gordima"]
[Black "Squirlolz"]
[Result "1-0"]
[WhiteElo "2535"]
[BlackElo "2324"]
[TimeControl "180+2"]
[EndTime "15:09:43 PDT"]
[Termination "Gordima won by checkmate"]

1. Nf3 {[%clk 0:03:02]} 1... c5 {[%clk 0:03:00.4]} 2. c4 {[%clk 0:03:03.1]} 2...
Nc6 {[%clk 0:03:01.2]} 3. Nc3 {[%clk 0:03:03.9]} 3... g6 {[%clk 0:03:01.9]} 4.
e3 {[%clk 0:03:04.8]} 4... Nf6 {[%clk 0:03:03.1]} 5. d4 {[%clk 0:03:06.3]} 5...
cxd4 {[%clk 0:03:05]} 6. exd4 {[%clk 0:03:07.6]} 6... d5 {[%clk 0:03:06.3]} 7.
cxd5 {[%clk 0:03:09.1]} 7... Nxd5 {[%clk 0:03:08.2]} 8. Qb3 {[%clk 0:03:10.4]}
8... e6 {[%clk 0:03:02.9]} 9. Bb5 {[%clk 0:03:09.3]} 9... Bg7 {[%clk 0:03:00.4]}
10. Bg5 {[%clk 0:03:07.3]} 10... f6 {[%clk 0:02:29.9]} 11. Bd2 {[%clk
0:03:07.4]} 11... O-O {[%clk 0:02:24.2]} 12. Bxc6 {[%clk 0:03:07]} 12... bxc6
{[%clk 0:02:25.1]} 13. O-O {[%clk 0:03:08.5]} 13... Rf7 {[%clk 0:02:08.7]} 14.
Rfe1 {[%clk 0:03:08.1]} 14... Rb7 {[%clk 0:02:01.2]} 15. Qc2 {[%clk 0:03:02.5]}
15... Nb4 {[%clk 0:01:53.5]} 16. Qe4 {[%clk 0:03:02.8]} 16... f5 {[%clk
0:01:46.7]} 17. Qb1 {[%clk 0:03:03.4]} 17... Bxd4 {[%clk 0:01:45.2]} 18. a3
{[%clk 0:02:55.9]} 18... Nd3 {[%clk 0:01:26.4]} 19. Bg5 {[%clk 0:02:28.4]} 19...
Bxf2+ {[%clk 0:00:38.8]} 20. Kf1 {[%clk 0:01:36.1]} 20... Qd6 {[%clk 0:00:32.8]}
21. Rd1 {[%clk 0:01:27.3]} 21... Rd7 {[%clk 0:00:33.5]} 22. Qxd3 {[%clk
0:01:17.7]} 22... Qxd3+ {[%clk 0:00:32]} 23. Rxd3 {[%clk 0:01:14.5]} 23... Rxd3
{[%clk 0:00:29.3]} 24. Kxf2 {[%clk 0:01:15.8]} 24... Rb8 {[%clk 0:00:31.2]} 25.
Ra2 {[%clk 0:00:59]} 25... Ba6 {[%clk 0:00:29.5]} 26. Ne5 {[%clk 0:00:58]} 26...
Rd6 {[%clk 0:00:19.7]} 27. b4 {[%clk 0:00:54]} 27... Bb7 {[%clk 0:00:14]} 28.
Be3 {[%clk 0:00:54.7]} 28... Ra8 {[%clk 0:00:11.5]} 29. Bc5 {[%clk 0:00:52.6]}
29... Rdd8 {[%clk 0:00:11.2]} 30. a4 {[%clk 0:00:51.4]} 30... a6 {[%clk
0:00:11.8]} 31. a5 {[%clk 0:00:51.2]} 31... Kg7 {[%clk 0:00:12.7]} 32. g3 {[%clk
0:00:52]} 32... Kf6 {[%clk 0:00:14.1]} 33. Nf3 {[%clk 0:00:47.8]} 33... e5
{[%clk 0:00:15.1]} 34. Rd2 {[%clk 0:00:32.8]} 34... Rxd2+ {[%clk 0:00:13.7]} 35.
Nxd2 {[%clk 0:00:33.5]} 35... Rd8 {[%clk 0:00:15.6]} 36. Ke2 {[%clk 0:00:31.2]}
36... Bc8 {[%clk 0:00:16.2]} 37. Nc4 {[%clk 0:00:28]} 37... Be6 {[%clk
0:00:15.2]} 38. Nd6 {[%clk 0:00:23.5]} 38... g5 {[%clk 0:00:14.3]} 39. g4 {[%clk
0:00:20.3]} 39... h5 {[%clk 0:00:12.5]} 40. gxf5 {[%clk 0:00:20.6]} 40... Bxf5
{[%clk 0:00:13.7]} 41. Ke3 {[%clk 0:00:19.8]} 41... g4 {[%clk 0:00:13.4]} 42.
Nce4+ {[%clk 0:00:18.3]} 42... Bxe4 {[%clk 0:00:13.8]} 43. Nxe4+ {[%clk
0:00:15.2]} 43... Ke6 {[%clk 0:00:14.6]} 44. Bb6 {[%clk 0:00:11.7]} 44... Rd1
{[%clk 0:00:14.3]} 45. Nc5+ {[%clk 0:00:12.5]} 45... Kd5 {[%clk 0:00:15.5]} 46.
Nxa6 {[%clk 0:00:13.6]} 46... Rh1 {[%clk 0:00:16.6]} 47. Nc7+ {[%clk 0:00:14.3]}
47... Kd6 {[%clk 0:00:16.6]} 48. a6 {[%clk 0:00:15.6]} 48... Rxh2 {[%clk
0:00:18.1]} 49. a7 {[%clk 0:00:16.4]} 49... Rh3+ {[%clk 0:00:19]} 50. Kf2 {[%clk
0:00:14.4]} 50... Rh2+ {[%clk 0:00:16.9]} 51. Kg3 {[%clk 0:00:14.2]} 51... Rh3+
{[%clk 0:00:18.1]} 52. Kg2 {[%clk 0:00:15.3]} 52... Ra3 {[%clk 0:00:18]} 53.
a8=Q {[%clk 0:00:16]} 53... Rxa8 {[%clk 0:00:18.6]} 54. Nxa8 {[%clk 0:00:17.4]}
54... Kd5 {[%clk 0:00:17.4]} 55. Kg3 {[%clk 0:00:17.8]} 55... Kc4 {[%clk
0:00:17.4]} 56. Bc5 {[%clk 0:00:19]} 56... e4 {[%clk 0:00:18.5]} 57. Nc7 {[%clk
0:00:16.7]} 57... e3 {[%clk 0:00:17.4]} 58. Bxe3 {[%clk 0:00:14.2]} 58... Kxb4
{[%clk 0:00:18.4]} 59. Ne6 {[%clk 0:00:15.7]} 59... Kc4 {[%clk 0:00:17.8]} 60.
Nc5 {[%clk 0:00:16.7]} 60... Kd5 {[%clk 0:00:17.5]} 61. Kh4 {[%clk 0:00:18.1]}
61... Ke5 {[%clk 0:00:11.3]} 62. Kxh5 {[%clk 0:00:19.1]} 62... g3 {[%clk
0:00:12.2]} 63. Kg4 {[%clk 0:00:19.6]} 63... g2 {[%clk 0:00:13.6]} 64. Kg3
{[%clk 0:00:21]} 64... Kd5 {[%clk 0:00:14.8]} 65. Kxg2 {[%clk 0:00:21.5]} 65...
Kc4 {[%clk 0:00:16.7]} 66. Kf3 {[%clk 0:00:22.7]} 66... Kd5 {[%clk 0:00:18.4]}
67. Kf4 {[%clk 0:00:23.8]} 67... Kc4 {[%clk 0:00:20.3]} 68. Ke4 {[%clk
0:00:25.1]} 68... Kb5 {[%clk 0:00:21.7]} 69. Kd4 {[%clk 0:00:26.4]} 69... Kb4
{[%clk 0:00:22.8]} 70. Bd2+ {[%clk 0:00:26.3]} 70... Kb5 {[%clk 0:00:24.7]} 71.
Bc3 {[%clk 0:00:26.1]} 71... Kb6 {[%clk 0:00:25.3]} 72. Kc4 {[%clk 0:00:27.5]}
72... Kc7 {[%clk 0:00:26.7]} 73. Be5+ {[%clk 0:00:28.9]} 73... Kd8 {[%clk
0:00:27.8]} 74. Bd6 {[%clk 0:00:29.1]} 74... Kc8 {[%clk 0:00:28.5]} 75. Kb4
{[%clk 0:00:30]} 75... Kd8 {[%clk 0:00:29.1]} 76. Ka5 {[%clk 0:00:31.4]} 76...
Ke8 {[%clk 0:00:30.1]} 77. Kb6 {[%clk 0:00:32.9]} 77... Kf7 {[%clk 0:00:30.9]}
78. Kxc6 {[%clk 0:00:34.4]} 78... Kg6 {[%clk 0:00:32.4]} 79. Kd5 {[%clk
0:00:35.8]} 79... Kf5 {[%clk 0:00:34.3]} 80. Be5 {[%clk 0:00:37]} 80... Kg4
{[%clk 0:00:35]} 81. Ke4 {[%clk 0:00:38.3]} 81... Kg5 {[%clk 0:00:36.3]} 82.
Ne6+ {[%clk 0:00:38.4]} 82... Kg4 {[%clk 0:00:38.2]} 83. Bf4 {[%clk 0:00:39.2]}
83... Kh3 {[%clk 0:00:38.9]} 84. Kf3 {[%clk 0:00:39.9]} 84... Kh4 {[%clk
0:00:40.4]} 85. Ng7 {[%clk 0:00:38.8]} 85... Kh3 {[%clk 0:00:42.3]} 86. Bg5
{[%clk 0:00:39.2]} 86... Kh2 {[%clk 0:00:43.5]} 87. Nf5 {[%clk 0:00:40.3]} 87...
Kh3 {[%clk 0:00:45.4]} 88. Ng3 {[%clk 0:00:40.6]} 88... Kh2 {[%clk 0:00:47.3]}
89. Be3 {[%clk 0:00:41.3]} 89... Kh3 {[%clk 0:00:49.2]} 90. Bg1 {[%clk
0:00:42.7]} 90... Kh4 {[%clk 0:00:50.8]} 91. Ne4 {[%clk 0:00:44.2]} 91... Kh3
{[%clk 0:00:52.7]} 92. Ng5+ {[%clk 0:00:44.3]} 92... Kh4 {[%clk 0:00:54.6]} 93.
Kf4 {[%clk 0:00:45.4]} 93... Kh5 {[%clk 0:00:56]} 94. Kf5 {[%clk 0:00:46.4]}
94... Kh4 {[%clk 0:00:57.9]} 95. Bf2+ {[%clk 0:00:47.5]} 95... Kh5 {[%clk
0:00:59.8]} 96. Ne6 {[%clk 0:00:48.6]} 96... Kh6 {[%clk 0:01:00.6]} 97. Be1
{[%clk 0:00:45.1]} 97... Kh5 {[%clk 0:01:00.7]} 98. Ng7+ {[%clk 0:00:46]} 98...
Kh6 {[%clk 0:01:02.1]} 99. Kf6 {[%clk 0:00:46.9]} 99... Kh7 {[%clk 0:01:03.6]}
100. Bd2 {[%clk 0:00:44.7]} 100... Kg8 {[%clk 0:01:04.8]} 101. Ne6 {[%clk
0:00:45.4]} 101... Kh7 {[%clk 0:01:06]} 102. Kf7 {[%clk 0:00:45.1]} 102... Kh8
{[%clk 0:01:07.5]} 103. Bc1 {[%clk 0:00:45.6]} 103... Kh7 {[%clk 0:01:08.8]}
104. Nf8+ {[%clk 0:00:47]} 104... Kh8 {[%clk 0:01:10.4]} 105. Bb2# {[%clk
0:00:48.1]} 1-0

[Event "*** Titled Tuesday 3|2 Blitz"]
[Site "Chess.com"]
[Date "2017.06.06"]
[Round "6"]
[White "ANLex1963"]
[Black "dolynachess"]
[Result "1/2-1/2"]
[WhiteElo "2196"]
[BlackElo "2303"]
[TimeControl "180+2"]
[EndTime "15:12:43 PDT"]
[Termination "Game drawn by repetition"]

1. Nf3 {[%clk 0:03:02]} 1... Nf6 {[%clk 0:02:59.5]} 2. c4 {[%clk 0:03:01.3]}
2... c5 {[%clk 0:03:00.3]} 3. g3 {[%clk 0:03:00.6]} 3... g6 {[%clk 0:03:01.7]}
4. Bg2 {[%clk 0:03:01.1]} 4... Bg7 {[%clk 0:03:03.3]} 5. O-O {[%clk 0:03:01.9]}
5... O-O {[%clk 0:03:04.9]} 6. d4 {[%clk 0:03:02.7]} 6... cxd4 {[%clk
0:03:05.5]} 7. Nxd4 {[%clk 0:03:03.2]} 7... Nc6 {[%clk 0:03:07.4]} 8. Nc3 {[%clk
0:03:02.4]} 8... Nxd4 {[%clk 0:03:08.1]} 9. Qxd4 {[%clk 0:03:01.8]} 9... d6
{[%clk 0:03:10]} 10. Bg5 {[%clk 0:02:57.2]} 10... a6 {[%clk 0:03:11.1]} 11. Qd2
{[%clk 0:02:55.8]} 11... Rb8 {[%clk 0:03:10.1]} 12. Rad1 {[%clk 0:02:53.6]}
12... Be6 {[%clk 0:03:05.4]} 13. b3 {[%clk 0:02:37.1]} 13... Re8 {[%clk
0:03:05.5]} 14. h3 {[%clk 0:02:27.4]} 14... Qa5 {[%clk 0:03:04.7]} 15. Bxf6
{[%clk 0:02:19.1]} 15... exf6 {[%clk 0:02:51]} 16. Nd5 {[%clk 0:02:15.8]} 16...
Qc5 {[%clk 0:02:38.7]} 17. e3 {[%clk 0:02:05.5]} 17... f5 {[%clk 0:02:39.2]} 18.
Nf4 {[%clk 0:02:02]} 18... Be5 {[%clk 0:02:31.2]} 19. Bd5 {[%clk 0:01:52.6]}
19... b5 {[%clk 0:02:19.5]} 20. Bxe6 {[%clk 0:01:43.3]} 20... fxe6 {[%clk
0:02:19.6]} 21. Nd3 {[%clk 0:01:42.9]} 21... Qc7 {[%clk 0:02:16.5]} 22. Nxe5
{[%clk 0:01:42.4]} 22... dxe5 {[%clk 0:02:18.4]} 23. cxb5 {[%clk 0:01:41.4]}
23... axb5 {[%clk 0:02:18.6]} 24. Qd6 {[%clk 0:01:39.7]} 24... Qxd6 {[%clk
0:02:17.5]} 25. Rxd6 {[%clk 0:01:38.4]} 25... Re7 {[%clk 0:02:18.6]} 26. Rc1
{[%clk 0:01:36.4]} 26... b4 {[%clk 0:02:13.1]} 27. Rc4 {[%clk 0:01:33.6]} 27...
Kf7 {[%clk 0:02:12.7]} 28. Ra6 {[%clk 0:01:24.2]} 28... e4 {[%clk 0:02:05.2]}
29. Ra4 {[%clk 0:01:22.2]} 29... Reb7 {[%clk 0:02:05.8]} 30. Kg2 {[%clk
0:01:21.8]} 30... Kf6 {[%clk 0:02:05.2]} 31. g4 {[%clk 0:01:21.5]} 31... h6
{[%clk 0:02:02.3]} 32. Kg3 {[%clk 0:01:20.4]} 32... Rb5 {[%clk 0:02:01.3]} 33.
h4 {[%clk 0:01:13]} 33... R8b6 {[%clk 0:01:47.7]} 34. Kf4 {[%clk 0:01:12]} 34...
g5+ {[%clk 0:01:29.2]} 35. Kg3 {[%clk 0:01:05.1]} 35... Rb8 {[%clk 0:01:22.9]}
36. gxf5 {[%clk 0:00:58.7]} 36... Kxf5 {[%clk 0:01:21.8]} 37. hxg5 {[%clk
0:00:51.5]} 37... hxg5 {[%clk 0:01:20.4]} 38. Rc6 {[%clk 0:00:49.9]} 38... Rd8
{[%clk 0:01:12.9]} 39. Raa6 {[%clk 0:00:46.2]} 39... Re5 {[%clk 0:00:56.8]} 40.
Rc4 {[%clk 0:00:45.4]} 40... Rd1 {[%clk 0:00:44.9]} 41. Rxb4 {[%clk 0:00:41.5]}
41... Rg1+ {[%clk 0:00:45.6]} 42. Kh2 {[%clk 0:00:41.3]} 42... Ra1 {[%clk
0:00:44.8]} 43. Rba4 {[%clk 0:00:41.4]} 43... Kg4 {[%clk 0:00:45.1]} 44. Kg2
{[%clk 0:00:39.3]} 44... Rb1 {[%clk 0:00:39.1]} 45. R6a5 {[%clk 0:00:38.1]}
45... Rxa5 {[%clk 0:00:24.4]} 46. Rxa5 {[%clk 0:00:38.9]} 46... Rb2 {[%clk
0:00:20.7]} 47. Re5 {[%clk 0:00:34.8]} 47... Rxa2 {[%clk 0:00:19.1]} 48. Rxe4+
{[%clk 0:00:33.7]} 48... Kf5 {[%clk 0:00:19.4]} 49. Rb4 {[%clk 0:00:32.6]} 49...
Rb2 {[%clk 0:00:19]} 50. Kf3 {[%clk 0:00:33.2]} 50... g4+ {[%clk 0:00:13.8]} 51.
Kg3 {[%clk 0:00:31.2]} 51... e5 {[%clk 0:00:14.7]} 52. Rb6 {[%clk 0:00:30.7]}
52... Ke4 {[%clk 0:00:14.7]} 53. Rb4+ {[%clk 0:00:28.2]} 53... Kf5 {[%clk
0:00:15.5]} 54. Rb7 {[%clk 0:00:21.4]} 54... Rb1 {[%clk 0:00:15.4]} 55. Rf7+
{[%clk 0:00:19.2]} 55... Ke6 {[%clk 0:00:14.5]} 56. Rb7 {[%clk 0:00:19.5]} 56...
Kf5 {[%clk 0:00:15.5]} 57. Kg2 {[%clk 0:00:19.6]} 57... Rb2 {[%clk 0:00:14.1]}
58. Rb4 {[%clk 0:00:19.7]} 58... Rb1 {[%clk 0:00:14.5]} 59. Kg3 {[%clk
0:00:20.5]} 59... Rg1+ {[%clk 0:00:12.9]} 60. Kh2 {[%clk 0:00:20.6]} 60... Rb1
{[%clk 0:00:13.5]} 61. Kg2 {[%clk 0:00:21.5]} 61... Kg5 {[%clk 0:00:09.6]} 62.
Kg3 {[%clk 0:00:21.4]} 62... Rg1+ {[%clk 0:00:09.8]} 63. Kh2 {[%clk 0:00:22.3]}
63... Rb1 {[%clk 0:00:11.7]} 64. Rb5 {[%clk 0:00:22.9]} 64... Kf5 {[%clk
0:00:11.9]} 65. Kg2 {[%clk 0:00:23.6]} 65... Ke4 {[%clk 0:00:10.4]} 66. Rb4+
{[%clk 0:00:23.8]} 66... Kf5 {[%clk 0:00:11]} 67. Rb8 {[%clk 0:00:24.3]} 67...
Ke4 {[%clk 0:00:10.4]} 68. b4 {[%clk 0:00:25]} 68... Kd3 {[%clk 0:00:04.8]} 69.
b5 {[%clk 0:00:25.6]} 69... Ke2 {[%clk 0:00:05.8]} 70. b6 {[%clk 0:00:21.8]}
70... Rb2 {[%clk 0:00:06.2]} 71. Kg3 {[%clk 0:00:20.3]} 71... Ke1 {[%clk
0:00:07.1]} 72. b7 {[%clk 0:00:20.9]} 72... Ke2 {[%clk 0:00:05.4]} 73. Rf8
{[%clk 0:00:20.8]} 73... Rxb7 {[%clk 0:00:04.9]} 74. Kxg4 {[%clk 0:00:21.5]}
74... Kd3 {[%clk 0:00:05.4]} 75. Kf5 {[%clk 0:00:21.2]} 75... e4 {[%clk
0:00:05.6]} 76. Rd8+ {[%clk 0:00:20]} 76... Ke2 {[%clk 0:00:07.1]} 77. Kxe4
{[%clk 0:00:20.8]} 77... Re7+ {[%clk 0:00:07]} 78. Kd5 {[%clk 0:00:19.5]} 78...
Kxf2 {[%clk 0:00:06.7]} 79. e4 {[%clk 0:00:20.2]} 79... Kf3 {[%clk 0:00:07.7]}
80. e5 {[%clk 0:00:21]} 80... Kf4 {[%clk 0:00:09.2]} 81. Rf8+ {[%clk 0:00:20.5]}
81... Kg5 {[%clk 0:00:09.6]} 82. Kd6 {[%clk 0:00:21.2]} 82... Ra7 {[%clk
0:00:10.8]} 83. e6 {[%clk 0:00:22.1]} 83... Ra6+ {[%clk 0:00:12]} 84. Kd7 {[%clk
0:00:22.4]} 84... Ra7+ {[%clk 0:00:13.5]} 85. Ke8 {[%clk 0:00:23.2]} 85... Kg6
{[%clk 0:00:11.2]} 86. e7 {[%clk 0:00:22.6]} 86... Kg7 {[%clk 0:00:12.1]} 87.
Rf3 {[%clk 0:00:21.7]} 87... Ra8+ {[%clk 0:00:13.3]} 88. Kd7 {[%clk 0:00:21.4]}
88... Ra7+ {[%clk 0:00:14.7]} 89. Kd6 {[%clk 0:00:21.8]} 89... Ra6+ {[%clk
0:00:15.7]} 90. Kd7 {[%clk 0:00:19.2]} 90... Ra7+ {[%clk 0:00:16.7]} 91. Ke6
{[%clk 0:00:19.3]} 91... Ra6+ {[%clk 0:00:17.3]} 92. Kd5 {[%clk 0:00:20.1]}
92... Ra5+ {[%clk 0:00:17.3]} 93. Kc6 {[%clk 0:00:19.8]} 93... Ra8 {[%clk
0:00:17.6]} 94. Re3 {[%clk 0:00:17.2]} 94... Kf7 {[%clk 0:00:17.5]} 95. Kd7
{[%clk 0:00:17.9]} 95... Ra7+ {[%clk 0:00:18.2]} 96. Kd8 {[%clk 0:00:18.7]}
96... Ra8+ {[%clk 0:00:19.2]} 97. Kd7 {[%clk 0:00:19]} 97... Ra7+ {[%clk
0:00:20.5]} 98. Kd8 {[%clk 0:00:19.4]} 98... Ra8+ {[%clk 0:00:21.6]} 99. Kd7
{[%clk 0:00:18.2]} 1/2-1/2

[Event "*** Titled Tuesday 3|2 Blitz"]
[Site "Chess.com"]
[Date "2017.06.06"]
[Round "7"]
[White "Vamostodorecto"]
[Black "dtn70"]
[Result "1-0"]
[WhiteElo "2323"]
[BlackElo "2199"]
[TimeControl "180+2"]
[EndTime "15:16:19 PDT"]
[Termination "Vamostodorecto won by resignation"]

1. d4 {[%clk 0:03:02]} 1... d6 {[%clk 0:03:00.2]} 2. c4 {[%clk 0:03:01]} 2... e5
{[%clk 0:03:00.5]} 3. Nf3 {[%clk 0:03:01.8]} 3... e4 {[%clk 0:02:59.9]} 4. Ng5
{[%clk 0:03:02.7]} 4... f5 {[%clk 0:03:00.9]} 5. Nc3 {[%clk 0:02:57]} 5... Nf6
{[%clk 0:03:01.3]} 6. h4 {[%clk 0:02:55.4]} 6... g6 {[%clk 0:02:55.7]} 7. Bf4
{[%clk 0:02:52.5]} 7... Bg7 {[%clk 0:02:55.8]} 8. e3 {[%clk 0:02:54.1]} 8... O-O
{[%clk 0:02:47.6]} 9. Be2 {[%clk 0:02:55]} 9... h6 {[%clk 0:02:47.4]} 10. Nh3
{[%clk 0:02:54.7]} 10... c6 {[%clk 0:02:41.3]} 11. Bg3 {[%clk 0:02:55.6]} 11...
Be6 {[%clk 0:02:37.5]} 12. Nf4 {[%clk 0:02:56.3]} 12... Bf7 {[%clk 0:02:38.2]}
13. d5 {[%clk 0:02:55.2]} 13... c5 {[%clk 0:02:36.9]} 14. Ne6 {[%clk 0:02:49.4]}
14... Bxe6 {[%clk 0:02:33.4]} 15. dxe6 {[%clk 0:02:51.3]} 15... Qe8 {[%clk
0:02:29.3]} 16. Qxd6 {[%clk 0:02:48.7]} 16... Nc6 {[%clk 0:02:21.5]} 17. Nd5
{[%clk 0:02:43.8]} 17... Rd8 {[%clk 0:02:15.2]} 18. Qxc5 {[%clk 0:02:41]} 18...
Qxe6 {[%clk 0:02:14]} 19. Rd1 {[%clk 0:02:31]} 19... b6 {[%clk 0:02:05.7]} 20.
Qxc6 {[%clk 0:02:30.4]} 1-0

[Event "*** Titled Tuesday 3|2 Blitz"]
[Site "Chess.com"]
[Date "2017.06.06"]
[Round "7"]
[White "DiamondCrusher22"]
[Black "goingin33"]
[Result "0-1"]
[WhiteElo "2009"]
[BlackElo "2184"]
[TimeControl "180+2"]
[EndTime "15:16:42 PDT"]
[Termination "goingin33 won by resignation"]

1. e4 {[%clk 0:03:02]} 1... e6 {[%clk 0:03:00.8]} 2. d4 {[%clk 0:03:02]} 2... d5
{[%clk 0:03:02]} 3. e5 {[%clk 0:03:02.5]} 3... c5 {[%clk 0:03:02.9]} 4. c3
{[%clk 0:03:03.3]} 4... Nc6 {[%clk 0:03:04.5]} 5. Nf3 {[%clk 0:03:03.5]} 5...
Bd7 {[%clk 0:03:05.7]} 6. a3 {[%clk 0:03:02.4]} 6... f6 {[%clk 0:03:06.3]} 7.
exf6 {[%clk 0:03:02.6]} 7... Nxf6 {[%clk 0:03:06.4]} 8. Bd3 {[%clk 0:03:00.6]}
8... cxd4 {[%clk 0:03:02.3]} 9. cxd4 {[%clk 0:03:00.6]} 9... Bd6 {[%clk
0:03:03.8]} 10. O-O {[%clk 0:03:01.4]} 10... O-O {[%clk 0:03:02.6]} 11. Bg5
{[%clk 0:03:02.1]} 11... Qc7 {[%clk 0:03:03.5]} 12. Nc3 {[%clk 0:02:59.9]} 12...
a6 {[%clk 0:03:04.1]} 13. h3 {[%clk 0:02:56]} 13... Rae8 {[%clk 0:02:52.6]} 14.
Rc1 {[%clk 0:02:56]} 14... Re7 {[%clk 0:02:52.1]} 15. Qb3 {[%clk 0:02:52.8]}
15... Be8 {[%clk 0:02:36.6]} 16. Rfe1 {[%clk 0:02:44.6]} 16... Bh5 {[%clk
0:02:30.9]} 17. Bxf6 {[%clk 0:02:21.3]} 17... Rxf6 {[%clk 0:02:30]} 18. Nxd5
{[%clk 0:02:22.2]} 18... exd5 {[%clk 0:02:25.1]} 19. Qxd5+ {[%clk 0:02:15]}
19... Bf7 {[%clk 0:02:25.7]} 20. Bxh7+ {[%clk 0:02:14.1]} 20... Kxh7 {[%clk
0:02:21.9]} 21. Ng5+ {[%clk 0:02:14.5]} 21... Kg8 {[%clk 0:02:22.1]} 22. Nxf7
{[%clk 0:02:14.3]} 22... Rfxf7 {[%clk 0:02:18.2]} 0-1